[Event "Early-Titled-Tuesday-Blitz-March-05-2024"]
[Site "Chess.com"]
[Date "2024.03.05"]
[Round "11"]
[White "viniciusrego"]
[Black "eagleclaw07"]
[Result "0-1"]
[WhiteElo "2421"]
[BlackElo "2816"]
[TimeControl "180+1"]
[EndTime "10:10:07 PST"]
[Termination "eagleclaw07 won by resignation"]

1. Nf3 {[%clk 0:02:57.4]} 1... Nc6 {[%clk 0:03:00.9]} 2. d4 {[%clk 0:02:56.4]}
2... d6 {[%clk 0:03:01.8]} 3. c4 {[%clk 0:02:55.6]} 3... g6 {[%clk 0:03:01.8]}
4. Bf4 {[%clk 0:02:54.1]} 4... Bg7 {[%clk 0:03:02.3]} 5. Nc3 {[%clk 0:02:54.8]}
5... Nf6 {[%clk 0:03:02.1]} 6. d5 {[%clk 0:02:55.2]} 6... Nb8 {[%clk 0:03:02.2]}
7. e3 {[%clk 0:02:55.3]} 7... O-O {[%clk 0:03:02.7]} 8. Be2 {[%clk 0:02:55.9]}
8... e5 {[%clk 0:03:03.3]} 9. dxe6 {[%clk 0:02:50.6]} 9... Bxe6 {[%clk
0:03:03.4]} 10. Nd4 {[%clk 0:02:48.9]} 10... Bd7 {[%clk 0:03:02]} 11. Rc1 {[%clk
0:02:49.4]} 11... Nc6 {[%clk 0:03:01.9]} 12. O-O {[%clk 0:02:48.3]} 12... Nh5
{[%clk 0:02:58.4]} 13. Bxh5 {[%clk 0:02:47.5]} 13... Nxd4 {[%clk 0:02:57.4]} 14.
exd4 {[%clk 0:02:48.4]} 14... gxh5 {[%clk 0:02:57.8]} 15. Qxh5 {[%clk
0:02:44.6]} 15... Bxd4 {[%clk 0:02:55.6]} 16. Rfd1 {[%clk 0:02:40.2]} 16... Bg7
{[%clk 0:02:54.2]} 17. Rd3 {[%clk 0:02:39.3]} 17... Qf6 {[%clk 0:02:50.7]} 18.
Rf3 {[%clk 0:02:25]} 18... Qg6 {[%clk 0:02:41.3]} 19. Qa5 {[%clk 0:02:24.6]}
19... b6 {[%clk 0:02:18.2]} 20. Qg5 {[%clk 0:02:23.9]} 20... Qxg5 {[%clk
0:02:14.6]} 21. Bxg5 {[%clk 0:02:24.8]} 21... Rfe8 {[%clk 0:02:14.6]} 22. Rg3
{[%clk 0:02:24.4]} 22... Kf8 {[%clk 0:02:09]} 23. Nd5 {[%clk 0:02:21.8]} 23...
Rac8 {[%clk 0:02:08]} 24. h4 {[%clk 0:02:15]} 24... f5 {[%clk 0:01:46.7]} 25. h5
{[%clk 0:02:06.6]} 25... Kf7 {[%clk 0:01:46.2]} 26. h6 {[%clk 0:02:06]} 26...
Be5 {[%clk 0:01:44.3]} 27. Rb3 {[%clk 0:01:57.2]} 27... Rg8 {[%clk 0:01:38.7]}
28. Be3 {[%clk 0:01:56.6]} 28... Bc6 {[%clk 0:01:35.4]} 29. g3 {[%clk
0:01:48.2]} 29... Bxd5 {[%clk 0:01:21.5]} 30. cxd5 {[%clk 0:01:49.1]} 30... f4
{[%clk 0:01:21]} 31. Bxf4 {[%clk 0:01:49.5]} 31... Bxf4 {[%clk 0:01:20.4]} 32.
Rf3 {[%clk 0:01:49.9]} 32... Rg4 {[%clk 0:01:20.4]} 33. Rc4 {[%clk 0:01:49.7]}
33... Kg6 {[%clk 0:01:14.7]} 34. Rcxf4 {[%clk 0:01:49.7]} 34... Rxf4 {[%clk
0:01:14.4]} 35. Rxf4 {[%clk 0:01:50.6]} 35... Re8 {[%clk 0:01:13]} 36. Kf1
{[%clk 0:01:48.7]} 36... Re7 {[%clk 0:01:05.7]} 37. Rc4 {[%clk 0:01:47.8]} 37...
Kxh6 {[%clk 0:01:05.5]} 38. f4 {[%clk 0:01:46.5]} 38... Kg6 {[%clk 0:01:02.2]}
39. g4 {[%clk 0:01:45.1]} 39... h5 {[%clk 0:00:57.6]} 40. gxh5+ {[%clk
0:01:42.6]} 40... Kxh5 {[%clk 0:00:58.5]} 41. Ra4 {[%clk 0:01:40.1]} 41... a5
{[%clk 0:00:51.6]} 42. Kf2 {[%clk 0:01:37.5]} 42... Kg4 {[%clk 0:00:51.5]} 43.
Rc4 {[%clk 0:01:38]} 43... Rh7 {[%clk 0:00:49.4]} 44. a4 {[%clk 0:01:27.8]}
44... Re7 {[%clk 0:00:48.2]} 45. b4 {[%clk 0:01:26.5]} 45... axb4 {[%clk
0:00:47.8]} 46. Rxb4 {[%clk 0:01:27.4]} 46... Rh7 {[%clk 0:00:37.9]} 47. Rc4
{[%clk 0:01:27.8]} 47... Rh5 {[%clk 0:00:18.8]} 48. Rxc7 {[%clk 0:01:17.5]}
48... Kxf4 {[%clk 0:00:14.7]} 49. Rc4+ {[%clk 0:01:12.8]} 49... Ke5 {[%clk
0:00:14.5]} 50. Rb4 {[%clk 0:01:13.4]} 50... Rh2+ {[%clk 0:00:12.1]} 51. Kg3
{[%clk 0:01:13.9]} 51... Ra2 {[%clk 0:00:13]} 52. Rxb6 {[%clk 0:01:09.4]} 52...
Rxa4 {[%clk 0:00:13.5]} 53. Kf3 {[%clk 0:01:09]} 53... Kxd5 {[%clk 0:00:09.2]}
54. Ke3 {[%clk 0:01:09]} 54... Ra3+ {[%clk 0:00:09.1]} 55. Kd2 {[%clk
0:01:08.8]} 55... Kc5 {[%clk 0:00:09.5]} 56. Rb8 {[%clk 0:01:08.6]} 56... d5
{[%clk 0:00:09.9]} 57. Rc8+ {[%clk 0:01:09.1]} 57... Kd4 {[%clk 0:00:09.9]} 58.
Kc2 {[%clk 0:01:08.2]} 58... Rh3 {[%clk 0:00:09.3]} 59. Rg8 {[%clk 0:01:07.2]}
59... Rh2+ {[%clk 0:00:09.7]} 60. Kd1 {[%clk 0:01:07.3]} 60... Kc4 {[%clk
0:00:10.1]} 61. Rc8+ {[%clk 0:01:05.7]} 61... Kd3 {[%clk 0:00:10.1]} 62. Ke1
{[%clk 0:01:05]} 62... Rh1+ {[%clk 0:00:10.6]} 63. Kf2 {[%clk 0:01:04.7]} 63...
d4 {[%clk 0:00:11.2]} 64. Ra8 {[%clk 0:01:04.2]} 64... Rc1 {[%clk 0:00:09.5]}
65. Ra3+ {[%clk 0:01:02.9]} 65... Kd2 {[%clk 0:00:09.8]} 66. Ra4 {[%clk
0:01:01.8]} 66... d3 {[%clk 0:00:10.3]} 67. Ra7 {[%clk 0:01:00.8]} 67... Rc2
{[%clk 0:00:10.2]} 68. Rd7 {[%clk 0:00:59.3]} 68... Ra2 {[%clk 0:00:10.1]} 69.
Rc7 {[%clk 0:00:58.8]} 69... Ra8 {[%clk 0:00:10.4]} 70. Rf7 {[%clk 0:00:57.4]}
70... Re8 {[%clk 0:00:10.2]} 71. Rd7 {[%clk 0:00:56.6]} 71... Rf8+ {[%clk
0:00:10.1]} 72. Kg1 {[%clk 0:00:55.9]} 72... Ke2 {[%clk 0:00:11]} 73. Re7+
{[%clk 0:00:56.2]} 73... Kd1 {[%clk 0:00:11.5]} 74. Ra7 {[%clk 0:00:55.6]} 74...
d2 {[%clk 0:00:11.4]} 0-1

[Event "Early-Titled-Tuesday-Blitz-March-05-2024"]
[Site "Chess.com"]
[Date "2024.03.05"]
[Round "11"]
[White "Kislov_Oleg"]
[Black "esrosenberg"]
[Result "1-0"]
[WhiteElo "2571"]
[BlackElo "2452"]
[TimeControl "180+1"]
[EndTime "10:10:08 PST"]
[Termination "Kislov_Oleg won by checkmate"]

1. e4 {[%clk 0:02:56.4]} 1... e6 {[%clk 0:02:59.5]} 2. d4 {[%clk 0:02:56]} 2...
d5 {[%clk 0:03:00.2]} 3. Nc3 {[%clk 0:02:55.9]} 3... Bb4 {[%clk 0:02:59.8]} 4.
Qd3 {[%clk 0:02:55.1]} 4... c5 {[%clk 0:02:50.3]} 5. a3 {[%clk 0:02:19.2]} 5...
Bxc3+ {[%clk 0:02:49.3]} 6. Qxc3 {[%clk 0:02:16.3]} 6... cxd4 {[%clk 0:02:39.8]}
7. Qxd4 {[%clk 0:02:16]} 7... Nf6 {[%clk 0:02:40.4]} 8. exd5 {[%clk 0:02:13]}
8... Qxd5 {[%clk 0:02:39.5]} 9. Qxd5 {[%clk 0:02:11.8]} 9... Nxd5 {[%clk
0:02:39.4]} 10. Bd2 {[%clk 0:02:08.8]} 10... O-O {[%clk 0:02:36.2]} 11. c4
{[%clk 0:02:07.9]} 11... Nf6 {[%clk 0:02:34.2]} 12. f3 {[%clk 0:02:04.9]} 12...
Nc6 {[%clk 0:02:31.7]} 13. Bc3 {[%clk 0:02:05.2]} 13... e5 {[%clk 0:02:27.3]}
14. Bd3 {[%clk 0:02:03]} 14... Be6 {[%clk 0:02:20.7]} 15. Ne2 {[%clk 0:02:00.2]}
15... Rfd8 {[%clk 0:02:19.7]} 16. O-O-O {[%clk 0:01:33.8]} 16... Rac8 {[%clk
0:02:12.2]} 17. b3 {[%clk 0:01:31.1]} 17... b5 {[%clk 0:02:07.6]} 18. Kc2 {[%clk
0:01:05.5]} 18... bxc4 {[%clk 0:02:02.4]} 19. Bxc4 {[%clk 0:01:05.4]} 19... Bxc4
{[%clk 0:02:00.3]} 20. Rxd8+ {[%clk 0:01:04.2]} 20... Nxd8 {[%clk 0:01:57.3]}
21. bxc4 {[%clk 0:01:04.5]} 21... Rxc4 {[%clk 0:01:57.6]} 22. Rd1 {[%clk
0:00:59.7]} 22... Ne6 {[%clk 0:01:57.3]} 23. Kb3 {[%clk 0:00:58.5]} 23... Rc5
{[%clk 0:01:47]} 24. Rd6 {[%clk 0:00:51.8]} 24... h5 {[%clk 0:01:37.3]} 25. Ra6
{[%clk 0:00:50.2]} 25... Nd5 {[%clk 0:01:15]} 26. Rxa7 {[%clk 0:00:37.9]} 26...
Nxc3 {[%clk 0:01:14.7]} 27. Ra8+ {[%clk 0:00:37.7]} 27... Kh7 {[%clk 0:01:13.6]}
28. Nxc3 {[%clk 0:00:38]} 28... Nd4+ {[%clk 0:01:08.4]} 29. Kb4 {[%clk
0:00:37.2]} 29... Rc6 {[%clk 0:01:09.1]} 30. a4 {[%clk 0:00:32.9]} 30... Rg6
{[%clk 0:01:08.8]} 31. g3 {[%clk 0:00:19.8]} 31... Nxf3 {[%clk 0:01:08.5]} 32.
a5 {[%clk 0:00:20.4]} 32... f5 {[%clk 0:01:06.1]} 33. a6 {[%clk 0:00:20.5]}
33... e4 {[%clk 0:01:06.6]} 34. a7 {[%clk 0:00:19.8]} 34... Ra6 {[%clk
0:01:07.3]} 35. Kb5 {[%clk 0:00:19]} 35... Ra3 {[%clk 0:00:34.2]} 36. Kb6 {[%clk
0:00:17.6]} 36... e3 {[%clk 0:00:26.9]} 37. Rc8 {[%clk 0:00:11.6]} 37... Ne5
{[%clk 0:00:15.6]} 38. a8=Q {[%clk 0:00:10.1]} 38... Rxa8 {[%clk 0:00:15.3]} 39.
Rxa8 {[%clk 0:00:09.9]} 39... Kg6 {[%clk 0:00:14.1]} 40. Kc5 {[%clk 0:00:09.1]}
40... Kg5 {[%clk 0:00:12.7]} 41. Kd4 {[%clk 0:00:08.8]} 41... Nf3+ {[%clk
0:00:11.8]} 42. Kxe3 {[%clk 0:00:08.7]} 42... Nxh2 {[%clk 0:00:12.7]} 43. Ra5
{[%clk 0:00:07.2]} 43... g6 {[%clk 0:00:12.4]} 44. Kf2 {[%clk 0:00:06.7]} 44...
Ng4+ {[%clk 0:00:12.2]} 45. Kg2 {[%clk 0:00:06.4]} 45... Ne3+ {[%clk 0:00:11.3]}
46. Kf3 {[%clk 0:00:06.9]} 46... Nc4 {[%clk 0:00:10.2]} 47. Rc5 {[%clk
0:00:06.3]} 47... Nd2+ {[%clk 0:00:08.3]} 48. Kg2 {[%clk 0:00:06.7]} 48... Kg4
{[%clk 0:00:07.1]} 49. Nd5 {[%clk 0:00:05.8]} 49... Ne4 {[%clk 0:00:05.4]} 50.
Ne3+ {[%clk 0:00:05.9]} 50... Kg5 {[%clk 0:00:05.7]} 51. Rc6 {[%clk 0:00:06.3]}
51... Nd2 {[%clk 0:00:03.1]} 52. Nd5 {[%clk 0:00:06.1]} 52... Ne4 {[%clk
0:00:02.2]} 53. Nf4 {[%clk 0:00:06.2]} 53... Kg4 {[%clk 0:00:01.8]} 54. Rxg6+
{[%clk 0:00:05.9]} 54... Ng5 {[%clk 0:00:02.7]} 55. Ne6 {[%clk 0:00:05.1]} 55...
h4 {[%clk 0:00:03.6]} 56. Rxg5# {[%clk 0:00:05.3]} 1-0

[Event "Early-Titled-Tuesday-Blitz-March-05-2024"]
[Site "Chess.com"]
[Date "2024.03.05"]
[Round "11"]
[White "Shivananda1964"]
[Black "mary-sanna"]
[Result "1-0"]
[WhiteElo "2332"]
[BlackElo "2216"]
[TimeControl "180+1"]
[EndTime "10:10:08 PST"]
[Termination "Shivananda1964 won on time"]

1. e4 {[%clk 0:02:52.8]} 1... c5 {[%clk 0:03:00.1]} 2. Nf3 {[%clk 0:02:49.1]}
2... Nc6 {[%clk 0:03:00.4]} 3. d4 {[%clk 0:02:47]} 3... cxd4 {[%clk 0:03:01.3]}
4. Nxd4 {[%clk 0:02:46.5]} 4... g6 {[%clk 0:03:01.7]} 5. Nc3 {[%clk 0:02:42.1]}
5... Bg7 {[%clk 0:03:01.7]} 6. Be3 {[%clk 0:02:42.7]} 6... Nf6 {[%clk
0:02:57.4]} 7. Nxc6 {[%clk 0:02:37.4]} 7... bxc6 {[%clk 0:02:46.9]} 8. Qd2
{[%clk 0:02:26.2]} 8... Ng4 {[%clk 0:02:35.6]} 9. Bf4 {[%clk 0:02:24.1]} 9...
Qb6 {[%clk 0:02:20.2]} 10. O-O-O {[%clk 0:02:01.9]} 10... Qxf2 {[%clk
0:02:08.8]} 11. Be2 {[%clk 0:01:52.3]} 11... Qxf4 {[%clk 0:01:42.9]} 12. Qxf4
{[%clk 0:01:40.8]} 12... Bh6 {[%clk 0:01:42.8]} 13. Qxh6 {[%clk 0:01:31.7]}
13... Nxh6 {[%clk 0:01:42.9]} 14. e5 {[%clk 0:01:21.5]} 14... Nf5 {[%clk
0:01:30.4]} 15. Rhf1 {[%clk 0:01:12.1]} 15... Ne3 {[%clk 0:01:29]} 16. Bf3
{[%clk 0:01:05.8]} 16... Nxf1 {[%clk 0:01:25.4]} 17. Rxf1 {[%clk 0:01:04.8]}
17... Ba6 {[%clk 0:01:25.4]} 18. Rf2 {[%clk 0:01:03.6]} 18... O-O {[%clk
0:01:24.6]} 19. Bg4 {[%clk 0:01:00.7]} 19... d6 {[%clk 0:01:10.3]} 20. b3 {[%clk
0:00:43.5]} 20... dxe5 {[%clk 0:01:06.4]} 21. Bd7 {[%clk 0:00:40.5]} 21... Bb7
{[%clk 0:01:01.8]} 22. Ne4 {[%clk 0:00:39.1]} 22... Rfd8 {[%clk 0:00:57.3]} 23.
Nc5 {[%clk 0:00:38.7]} 23... Bc8 {[%clk 0:00:54.7]} 24. Bxc6 {[%clk 0:00:37.5]}
24... Rb8 {[%clk 0:00:53.5]} 25. Kb2 {[%clk 0:00:35.2]} 25... Bf5 {[%clk
0:00:50.2]} 26. Bf3 {[%clk 0:00:33.1]} 26... Rbc8 {[%clk 0:00:47.9]} 27. Ne4
{[%clk 0:00:32.6]} 27... Bxe4 {[%clk 0:00:44.3]} 28. Bxe4 {[%clk 0:00:32.2]}
28... f5 {[%clk 0:00:42.3]} 29. Bd3 {[%clk 0:00:28.9]} 29... e6 {[%clk
0:00:35.7]} 30. a4 {[%clk 0:00:23.2]} 30... Kg7 {[%clk 0:00:32.5]} 31. a5 {[%clk
0:00:22]} 31... Rd5 {[%clk 0:00:27.6]} 32. b4 {[%clk 0:00:20.8]} 32... Rd4
{[%clk 0:00:22.8]} 33. Kb3 {[%clk 0:00:15.1]} 33... e4 {[%clk 0:00:21.5]} 34.
Ba6 {[%clk 0:00:11.2]} 34... Rc6 {[%clk 0:00:21]} 35. b5 {[%clk 0:00:09.8]}
35... Rc5 {[%clk 0:00:18.9]} 36. Re2 {[%clk 0:00:08.6]} 36... Kf6 {[%clk
0:00:18.7]} 37. h3 {[%clk 0:00:07.8]} 37... g5 {[%clk 0:00:17.4]} 38. c3 {[%clk
0:00:07.3]} 38... Rd3 {[%clk 0:00:17]} 39. Rc2 {[%clk 0:00:07.5]} 39... e3
{[%clk 0:00:14.8]} 40. Kb4 {[%clk 0:00:07.8]} 40... Rc7 {[%clk 0:00:12.8]} 41.
b6 {[%clk 0:00:07]} 41... axb6 {[%clk 0:00:06.3]} 42. Bxd3 {[%clk 0:00:05.9]}
42... bxa5+ {[%clk 0:00:06.7]} 43. Kxa5 {[%clk 0:00:05.4]} 43... e5 {[%clk
0:00:06.3]} 44. c4 {[%clk 0:00:05.1]} 44... e4 {[%clk 0:00:05.8]} 45. Be2 {[%clk
0:00:05.7]} 45... f4 {[%clk 0:00:05.8]} 46. Kb5 {[%clk 0:00:05.8]} 46... Kg6
{[%clk 0:00:02.8]} 47. c5 {[%clk 0:00:05.5]} 47... h5 {[%clk 0:00:02.8]} 48. c6
{[%clk 0:00:05]} 48... g4 {[%clk 0:00:03]} 49. hxg4 {[%clk 0:00:04.2]} 49...
hxg4 {[%clk 0:00:03.3]} 50. Kb6 {[%clk 0:00:04.4]} 1-0

[Event "Early-Titled-Tuesday-Blitz-March-05-2024"]
[Site "Chess.com"]
[Date "2024.03.05"]
[Round "11"]
[White "PepeCuenca"]
[Black "alexrustemov"]
[Result "1-0"]
[WhiteElo "2723"]
[BlackElo "2803"]
[TimeControl "180+1"]
[EndTime "10:10:12 PST"]
[Termination "PepeCuenca won on time"]

1. d4 {[%clk 0:03:00.9]} 1... d5 {[%clk 0:02:59.7]} 2. Bf4 {[%clk 0:02:59.3]}
2... Nf6 {[%clk 0:02:57.6]} 3. e3 {[%clk 0:02:59.1]} 3... c5 {[%clk 0:02:57]} 4.
dxc5 {[%clk 0:03:00]} 4... e6 {[%clk 0:02:53.4]} 5. b4 {[%clk 0:03:00]} 5... a5
{[%clk 0:02:52.1]} 6. c3 {[%clk 0:03:00]} 6... axb4 {[%clk 0:02:50.1]} 7. cxb4
{[%clk 0:03:00.2]} 7... b6 {[%clk 0:02:50.6]} 8. Bxb8 {[%clk 0:02:43.5]} 8...
Rxb8 {[%clk 0:02:46.1]} 9. Bb5+ {[%clk 0:02:43.7]} 9... Ke7 {[%clk 0:02:16.2]}
10. c6 {[%clk 0:02:43.9]} 10... g6 {[%clk 0:02:09.3]} 11. Nd2 {[%clk 0:02:37.2]}
11... Bg7 {[%clk 0:02:08.2]} 12. Rc1 {[%clk 0:02:34.8]} 12... Ne8 {[%clk
0:02:02.8]} 13. Ngf3 {[%clk 0:02:22.4]} 13... Qd6 {[%clk 0:02:01.2]} 14. a3
{[%clk 0:02:19.2]} 14... Nc7 {[%clk 0:01:59.5]} 15. Bd3 {[%clk 0:02:09.9]} 15...
Ra8 {[%clk 0:01:59]} 16. Qb3 {[%clk 0:02:04.8]} 16... Ba6 {[%clk 0:01:53.6]} 17.
Nd4 {[%clk 0:01:24.9]} 17... e5 {[%clk 0:01:52.3]} 18. Ne2 {[%clk 0:01:09.9]}
18... Rhd8 {[%clk 0:01:41.1]} 19. O-O {[%clk 0:01:08.8]} 19... Bc8 {[%clk
0:01:31.4]} 20. a4 {[%clk 0:01:03.2]} 20... Be6 {[%clk 0:01:30.8]} 21. b5 {[%clk
0:01:02.2]} 21... f5 {[%clk 0:01:25.2]} 22. Qd1 {[%clk 0:00:32.6]} 22... Bf6
{[%clk 0:01:15.8]} 23. Re1 {[%clk 0:00:30.3]} 23... Kf7 {[%clk 0:01:12.5]} 24.
Bc2 {[%clk 0:00:28]} 24... h5 {[%clk 0:01:12]} 25. Bb3 {[%clk 0:00:28.2]} 25...
h4 {[%clk 0:01:06.8]} 26. Qc2 {[%clk 0:00:25.4]} 26... g5 {[%clk 0:01:03.8]} 27.
Rcd1 {[%clk 0:00:20.6]} 27... g4 {[%clk 0:01:03]} 28. Qc3 {[%clk 0:00:17.8]}
28... Kg7 {[%clk 0:00:57.1]} 29. Qc2 {[%clk 0:00:10.1]} 29... Rh8 {[%clk
0:00:53.9]} 30. Nb1 {[%clk 0:00:09.4]} 30... Rad8 {[%clk 0:00:41]} 31. Nbc3
{[%clk 0:00:09.7]} 31... h3 {[%clk 0:00:36.5]} 32. g3 {[%clk 0:00:08.6]} 32...
Qb4 {[%clk 0:00:30.5]} 33. Na2 {[%clk 0:00:08.3]} 33... Qd6 {[%clk 0:00:30.1]}
34. Rd2 {[%clk 0:00:08.5]} 34... Rhe8 {[%clk 0:00:27.3]} 35. Red1 {[%clk
0:00:08.8]} 35... Qe7 {[%clk 0:00:22.8]} 36. Nac3 {[%clk 0:00:08.6]} 36... Rd6
{[%clk 0:00:21.3]} 37. Qa2 {[%clk 0:00:07.4]} 37... d4 {[%clk 0:00:20]} 38. Bxe6
{[%clk 0:00:04.6]} 38... Nxe6 {[%clk 0:00:19.8]} 39. Nb1 {[%clk 0:00:03.2]}
39... Red8 {[%clk 0:00:19.6]} 40. exd4 {[%clk 0:00:02.6]} 40... exd4 {[%clk
0:00:18.7]} 41. Rd3 {[%clk 0:00:02.7]} 41... Nc5 {[%clk 0:00:18.6]} 42. Nf4
{[%clk 0:00:03.1]} 42... Nxd3 {[%clk 0:00:16.9]} 43. Nxd3 {[%clk 0:00:03.6]}
43... Ra8 {[%clk 0:00:14.8]} 44. Qc2 {[%clk 0:00:03.8]} 44... Qe4 {[%clk
0:00:11.9]} 45. Ne1 {[%clk 0:00:03.9]} 45... d3 {[%clk 0:00:10.9]} 46. Qd2
{[%clk 0:00:03.7]} 46... Qxa4 {[%clk 0:00:09.6]} 47. Nc3 {[%clk 0:00:04.2]}
47... Qc4 {[%clk 0:00:09.3]} 48. Qf4 {[%clk 0:00:04.3]} 48... Rad8 {[%clk
0:00:07.5]} 49. Qxc4 {[%clk 0:00:03.9]} 49... d2 {[%clk 0:00:04.2]} 50. Nc2
{[%clk 0:00:04.4]} 50... Re8 {[%clk 0:00:02.2]} 51. Ne3 {[%clk 0:00:04.4]} 51...
Rde6 {[%clk 0:00:01]} 52. c7 {[%clk 0:00:03.8]} 52... Bg5 {[%clk 0:00:01.3]} 53.
c8=Q {[%clk 0:00:03.7]} 1-0

[Event "Early-Titled-Tuesday-Blitz-March-05-2024"]
[Site "Chess.com"]
[Date "2024.03.05"]
[Round "11"]
[White "Binary010"]
[Black "Juwen"]
[Result "1-0"]
[WhiteElo "2819"]
[BlackElo "2660"]
[TimeControl "180+1"]
[EndTime "10:10:14 PST"]
[Termination "Binary010 won on time"]

1. e4 {[%clk 0:03:00.9]} 1... c5 {[%clk 0:02:59.1]} 2. Nf3 {[%clk 0:03:01]} 2...
e6 {[%clk 0:02:58.4]} 3. d4 {[%clk 0:03:01]} 3... cxd4 {[%clk 0:02:59.3]} 4.
Nxd4 {[%clk 0:03:01.7]} 4... Nc6 {[%clk 0:02:59]} 5. Nc3 {[%clk 0:03:01.6]} 5...
Nf6 {[%clk 0:02:59.1]} 6. Ndb5 {[%clk 0:02:57.2]} 6... d6 {[%clk 0:02:57.5]} 7.
Bf4 {[%clk 0:02:56.3]} 7... e5 {[%clk 0:02:57.6]} 8. Bg5 {[%clk 0:02:56.8]} 8...
a6 {[%clk 0:02:57.9]} 9. Na3 {[%clk 0:02:57.1]} 9... b5 {[%clk 0:02:58.3]} 10.
Nab1 {[%clk 0:02:57.2]} 10... Be7 {[%clk 0:02:53]} 11. Bxf6 {[%clk 0:02:57.1]}
11... Bxf6 {[%clk 0:02:52.7]} 12. a4 {[%clk 0:02:57.6]} 12... b4 {[%clk
0:02:52.6]} 13. Nd5 {[%clk 0:02:58.4]} 13... Bg5 {[%clk 0:02:49.2]} 14. Bc4
{[%clk 0:02:58.5]} 14... O-O {[%clk 0:02:48.3]} 15. O-O {[%clk 0:02:58.7]} 15...
Be6 {[%clk 0:02:48.1]} 16. Qd3 {[%clk 0:02:53]} 16... a5 {[%clk 0:02:42.5]} 17.
c3 {[%clk 0:02:50.7]} 17... bxc3 {[%clk 0:02:30.7]} 18. Nbxc3 {[%clk 0:02:37.5]}
18... Rb8 {[%clk 0:02:23.3]} 19. Nb5 {[%clk 0:02:36.5]} 19... Kh8 {[%clk
0:02:20.6]} 20. Rad1 {[%clk 0:02:31.2]} 20... f5 {[%clk 0:02:06.6]} 21. Ndc7
{[%clk 0:02:14.6]} 21... Bc8 {[%clk 0:01:36.3]} 22. Qxd6 {[%clk 0:01:55.6]}
22... Qxd6 {[%clk 0:01:35.3]} 23. Nxd6 {[%clk 0:01:54.4]} 23... h6 {[%clk
0:01:08.6]} 24. Ncb5 {[%clk 0:01:42.7]} 24... fxe4 {[%clk 0:01:02.5]} 25. Nf7+
{[%clk 0:01:37.2]} 25... Kh7 {[%clk 0:00:59]} 26. Nxg5+ {[%clk 0:01:37.3]} 26...
hxg5 {[%clk 0:00:59.9]} 27. Bd5 {[%clk 0:01:37.7]} 27... Nb4 {[%clk 0:00:57.9]}
28. Bxe4+ {[%clk 0:01:37.6]} 28... Kh8 {[%clk 0:00:57.6]} 29. Rfe1 {[%clk
0:01:19.7]} 29... Ba6 {[%clk 0:00:56.8]} 30. Nd6 {[%clk 0:01:11.1]} 30... Rf6
{[%clk 0:00:47.5]} 31. Bb1 {[%clk 0:00:49.2]} 31... Nd3 {[%clk 0:00:33.1]} 32.
Bxd3 {[%clk 0:00:48.9]} 32... Rxd6 {[%clk 0:00:32.3]} 33. Bxa6 {[%clk
0:00:48.1]} 33... Rxa6 {[%clk 0:00:33.2]} 34. Rd2 {[%clk 0:00:41.6]} 34... Re6
{[%clk 0:00:29.9]} 35. g3 {[%clk 0:00:38.2]} 35... Rb4 {[%clk 0:00:29.3]} 36.
Rd5 {[%clk 0:00:35.8]} 36... Rxa4 {[%clk 0:00:22]} 37. Rexe5 {[%clk 0:00:36]}
37... Rxe5 {[%clk 0:00:22.2]} 38. Rxe5 {[%clk 0:00:36.9]} 38... g4 {[%clk
0:00:22.6]} 39. Kg2 {[%clk 0:00:36.3]} 39... Kh7 {[%clk 0:00:20.6]} 40. Kf1
{[%clk 0:00:29]} 40... Kg6 {[%clk 0:00:20.1]} 41. Ke2 {[%clk 0:00:29.7]} 41...
Kf6 {[%clk 0:00:20.2]} 42. Rb5 {[%clk 0:00:28.4]} 42... g6 {[%clk 0:00:16.2]}
43. Ke3 {[%clk 0:00:25.8]} 43... Ke6 {[%clk 0:00:14.9]} 44. b3 {[%clk 0:00:21]}
44... Ra3 {[%clk 0:00:14.5]} 45. Kf4 {[%clk 0:00:20.3]} 45... Ra2 {[%clk
0:00:12.7]} 46. Kxg4 {[%clk 0:00:16.8]} 46... Rxf2 {[%clk 0:00:13.3]} 47. h4
{[%clk 0:00:14.6]} 47... Rb2 {[%clk 0:00:13.4]} 48. Kg5 {[%clk 0:00:13.7]} 48...
Kf7 {[%clk 0:00:13.3]} 49. Rb7+ {[%clk 0:00:10.9]} 49... Kf8 {[%clk 0:00:13.5]}
50. Rb5 {[%clk 0:00:07.7]} 50... Kf7 {[%clk 0:00:12.9]} 51. g4 {[%clk
0:00:07.3]} 51... Ke6 {[%clk 0:00:02.5]} 52. Rxa5 {[%clk 0:00:06.6]} 52... Rxb3
{[%clk 0:00:01.9]} 53. Kxg6 {[%clk 0:00:06.4]} 53... Rb4 {[%clk 0:00:02.3]} 54.
Kg5 {[%clk 0:00:06.2]} 54... Kf7 {[%clk 0:00:02.5]} 55. h5 {[%clk 0:00:06.1]}
1-0